[Event "Titled Tuesday Blitz August 15 Late 2023"]
[White "Petersson, Kjell"]
[Black "Maluco_do_Natal_00"]
[WhiteFideId "1705148"]
[WhiteElo "2170"]
[BlackElo "2073"]
[Result "1-0"]
[Round "11"]
[TimeControl "180+1"]
[Date "2023.08.15"]
[WhiteClock "0:00:12"]
[BlackClock "0:00:00"]
[Board "98"]

1. d4 {[%clk 0:03:00]}  d5 {[%clk 0:02:58]} 2. Bf4 {[%clk 0:03:01]}  Nf6 {[%clk 0:02:57]} 3. e3 {[%clk 0:03:01]}  e6 {[%clk 0:02:56]} 4. Nd2 {[%clk 0:03:00]}  Bd6 {[%clk 0:02:56]} 5. Bg3 {[%clk 0:02:57]}  c5 {[%clk 0:02:46]} 6. c3 {[%clk 0:02:56]}  Qc7 {[%clk 0:02:46]} 7. Ngf3 {[%clk 0:02:54]}  Nbd7 {[%clk 0:02:20]} 8. Be2 {[%clk 0:02:52]}  O-O {[%clk 0:02:20]} 9. Bxd6 {[%clk 0:02:48]}  Qxd6 {[%clk 0:02:19]} 10. O-O {[%clk 0:02:47]}  a6 {[%clk 0:01:46]} 11. a4 {[%clk 0:02:39]}  b6 {[%clk 0:01:35]} 12. Qb1 {[%clk 0:02:17]}  Re8 {[%clk 0:01:27]} 13. Rd1 {[%clk 0:02:15]}  h6 {[%clk 0:01:22]} 14. Bf1 {[%clk 0:02:07]}  e5 {[%clk 0:01:21]} 15. dxe5 {[%clk 0:02:07]}  Nxe5 {[%clk 0:01:22]} 16. Nxe5 {[%clk 0:02:07]}  Qxe5 {[%clk 0:01:22]} 17. Nf3 {[%clk 0:02:07]}  Qh5 {[%clk 0:01:22]} 18. c4 {[%clk 0:01:48]}  Bb7 {[%clk 0:01:13]} 19. Qc2 {[%clk 0:01:39]}  dxc4 {[%clk 0:01:00]} 20. Be2 {[%clk 0:01:37]}  b5 {[%clk 0:00:56]} 21. axb5 {[%clk 0:01:36]}  axb5 {[%clk 0:00:55]} 22. Rxa8 {[%clk 0:01:35]}  Rxa8 {[%clk 0:00:55]} 23. h3 {[%clk 0:01:20]}  Be4 {[%clk 0:00:51]} 24. Qd2 {[%clk 0:01:11]}  Qf5 {[%clk 0:00:44]} 25. Qd6 {[%clk 0:01:06]}  Ra2 {[%clk 0:00:19]} 26. Qb8+ {[%clk 0:01:05]}  Kh7 {[%clk 0:00:18]} 27. Qxb5 {[%clk 0:01:06]}  c3 {[%clk 0:00:15]} 28. bxc3 {[%clk 0:00:56]}  g5 {[%clk 0:00:14]} 29. Bc4 {[%clk 0:00:42]}  Rc2 {[%clk 0:00:11]} 30. Bxf7 {[%clk 0:00:30]}  Bxf3 {[%clk 0:00:10]} 31. gxf3 {[%clk 0:00:29]}  Qxf3 {[%clk 0:00:09]} 32. Qf1 {[%clk 0:00:28]}  Rxf2 {[%clk 0:00:08]} 33. Qxf2 {[%clk 0:00:27]}  Qxd1+ {[%clk 0:00:09]} 34. Kg2 {[%clk 0:00:26]}  Kg7 {[%clk 0:00:08]} 35. Bc4 {[%clk 0:00:25]}  Qd6 {[%clk 0:00:06]} 36. Be2 {[%clk 0:00:20]}  Qe5 {[%clk 0:00:06]} 37. Qf3 {[%clk 0:00:19]}  Qxc3 {[%clk 0:00:06]} 38. Qb7+ {[%clk 0:00:19]}  Kg6 {[%clk 0:00:05]} 39. Qf3 {[%clk 0:00:19]}  Qe5 {[%clk 0:00:04]} 40. Bd3+ {[%clk 0:00:18]}  Kg7 {[%clk 0:00:05]} 41. Qf2 {[%clk 0:00:16]}  Ne4 {[%clk 0:00:04]} 42. Qf3 {[%clk 0:00:15]}  Nf6 {[%clk 0:00:02]} 43. Qb7+ {[%clk 0:00:15]}  Kf8 {[%clk 0:00:02]} 44. Qc8+ {[%clk 0:00:15]}  Ke7 {[%clk 0:00:02]} 45. Qb7+ {[%clk 0:00:15]}  Nd7 {[%clk 0:00:01]} 46. Bb5 {[%clk 0:00:14]}  Qd6 {[%clk 0:00:01]} 47. Qe4+ {[%clk 0:00:13]}  Qe5 {[%clk 0:00:00]} 48. Qh7+ {[%clk 0:00:12]} 1-0


[Site "https://www.chess.com"]

[Event "Titled Tuesday Blitz August 15 Late 2023"]
[White "dorpato"]
[Black "laskakid"]
[WhiteElo "2040"]
[BlackElo "2126"]
[Result "0-1"]
[Round "11"]
[TimeControl "180+1"]
[Date "2023.08.15"]
[WhiteClock "0:00:00"]
[BlackClock "0:00:26"]
[Board "101"]

1. e4 {[%clk 0:02:59]}  e5 {[%clk 0:02:59]} 2. d4 {[%clk 0:02:55]}  exd4 {[%clk 0:02:58]} 3. Nf3 {[%clk 0:02:54]}  Nc6 {[%clk 0:02:56]} 4. c3 {[%clk 0:02:54]}  dxc3 {[%clk 0:02:52]} 5. Nxc3 {[%clk 0:02:55]}  Bb4 {[%clk 0:02:45]} 6. Bc4 {[%clk 0:02:52]}  Nf6 {[%clk 0:02:39]} 7. e5 {[%clk 0:02:48]}  Qe7 {[%clk 0:02:29]} 8. O-O {[%clk 0:02:43]}  Bxc3 {[%clk 0:02:21]} 9. exf6 {[%clk 0:02:09]}  Bxf6 {[%clk 0:02:20]} 10. Re1 {[%clk 0:02:08]}  Ne5 {[%clk 0:02:19]} 11. Nxe5 {[%clk 0:02:06]}  Bxe5 {[%clk 0:02:19]} 12. Kh1 {[%clk 0:00:20]}  O-O {[%clk 0:02:06]} 13. Qf3 {[%clk 0:00:13]}  Qf6 {[%clk 0:01:53]} 14. Qb3 {[%clk 0:00:12]}  c6 {[%clk 0:01:43]} 15. Be3 {[%clk 0:00:10]}  d5 {[%clk 0:01:43]} 16. Bd3 {[%clk 0:00:10]}  Bxb2 {[%clk 0:01:30]} 17. Rab1 {[%clk 0:00:10]}  Bd4 {[%clk 0:01:26]} 18. Qc2 {[%clk 0:00:09]}  g6 {[%clk 0:01:21]} 19. Bxd4 {[%clk 0:00:07]}  Qxd4 {[%clk 0:01:20]} 20. Re3 {[%clk 0:00:07]}  Qf6 {[%clk 0:01:10]} 21. Rf3 {[%clk 0:00:07]}  Qd6 {[%clk 0:01:06]} 22. Rh3 {[%clk 0:00:06]}  b6 {[%clk 0:01:02]} 23. Qd2 {[%clk 0:00:06]}  Qf6 {[%clk 0:00:57]} 24. Rc1 {[%clk 0:00:05]}  c5 {[%clk 0:00:55]} 25. Qh6 {[%clk 0:00:05]}  Qg7 {[%clk 0:00:55]} 26. Qg5 {[%clk 0:00:05]}  Be6 {[%clk 0:00:55]} 27. Rh6 {[%clk 0:00:04]}  Rfe8 {[%clk 0:00:50]} 28. Qh4 {[%clk 0:00:04]}  c4 {[%clk 0:00:47]} 29. Bb1 {[%clk 0:00:04]}  d4 {[%clk 0:00:46]} 30. Rf1 {[%clk 0:00:01]}  d3 {[%clk 0:00:45]} 31. f4 {[%clk 0:00:02]}  Bf5 {[%clk 0:00:43]} 32. g4 {[%clk 0:00:02]}  Be4+ {[%clk 0:00:41]} 33. Kg1 {[%clk 0:00:02]}  c3 {[%clk 0:00:39]} 34. f5 {[%clk 0:00:02]}  g5 {[%clk 0:00:31]} 35. f6 {[%clk 0:00:01]}  gxh4 {[%clk 0:00:30]} 36. fxg7 {[%clk 0:00:01]}  Kxg7 {[%clk 0:00:30]} 37. Rxh4 {[%clk 0:00:02]}  c2 {[%clk 0:00:29]} 38. Bxc2 {[%clk 0:00:01]}  dxc2 {[%clk 0:00:29]} 39. g5 {[%clk 0:00:01]}  Rad8 {[%clk 0:00:28]} 40. Rhf4 {[%clk 0:00:01]}  Bg6 {[%clk 0:00:26]} 41. h4 {[%clk 0:00:00]}  Rd1 {[%clk 0:00:26]} 0-1


[Site "https://www.chess.com"]